bitfinex/quotes_SOLUSD_20250126
["timestamp","ask_amount","ask_price","bid_price","bid_amount"]
[1737885566803,0.063,254.91,254.86,20.0]
[1737885566804,1.063,254.91,254.86,20.0]
[1737885567002,0.063,254.91,254.87,23.776884]
[1737885567201,0.063,254.91,254.9,43.776884]
[1737885569810,0.063,254.91,254.9,47.699984]
[1737885570412,0.063,254.91,254.8,1.58079194]
[1737885570717,1.0,254.87,254.84,20.0]
[1737885571013,1.0,254.85,254.84,20.0]
[1737885571228,1.0,254.85,254.82,20.0]
[1737885571723,1.0,254.83,254.81,3.9244]
[1737885572903,1.0,254.83,254.82,23.776884]
[1737885575336,2.0,254.85,254.82,23.776884]
[1737885575519,2.0,254.85,254.8,43.776884]
[1737885577107,1.0,254.87,254.8,43.776884]
[1737885577503,1.0,254.87,254.82,23.776884]
[1737885578319,1.0,254.86,254.82,23.776884]
[1737885578824,1.0,254.86,254.84,23.776884]
[1737885579221,1.0,254.85,254.84,23.776884]
[1737885581797,1.0,254.86,254.81,20.0]
[1737885582004,1.0,254.86,254.82,23.776884]
[1737885582702,1.0,254.86,254.84,23.776884]
[1737885584236,1.0,254.85,254.84,23.776884]
[1737885586434,1.0,254.85,254.82,3.9243]
[1737885586623,1.0,254.85,254.84,23.776884]
[1737885587522,1.0,254.85,254.8,9.8113]
[1737885587722,1.0,254.8,254.78,23.9249]
[1737885587908,1.0,254.8,254.79,23.776884]
[1737885590327,1.0,254.8,254.79,27.701484]
[1737885591828,1.0,254.8,254.79,27.731484]
[1737885592028,2.0,254.84,254.79,27.731484]
[1737885592211,1.0,254.8,254.79,27.731484]
[1737885594135,2.0,254.84,254.79,27.731484]
[1737885594340,1.0,254.8,254.79,27.731484]
[1737885597236,0.063,254.85,254.83,23.776884]
[1737885598111,1.063,254.85,254.83,23.776884]
[1737885598337,0.063,254.85,254.84,27.700884]
[1737885599243,1.063,254.85,254.84,27.700884]
[1737885599748,1.063,254.85,254.84,23.776884]
[1737885600526,2.0,254.8,254.79,0.03]
[1737885610279,1.5682,254.84,254.79,0.03]
[1737885610280,2.0,254.82,254.79,0.03]
[1737885610774,2.0,254.82,254.79,23.806884]
[1737885611141,1.0,254.82,254.79,23.806884]
[1737885611345,1.0,254.84,254.81,23.776884]
[1737885612469,0.063,254.85,254.81,23.776884]
[1737885612777,0.063,254.85,254.84,23.776884]
[1737885613487,0.063,254.85,254.84,27.700884]
[1737885615448,0.063,254.85,254.84,339.700884]
[1737885620988,0.063,254.85,254.84,27.700884]
[1737885621287,1.063,254.91,254.9,43.776884]
[1737885621478,0.063,254.91,254.9,47.699984]
[1737885623689,0.063,254.91,254.85,3.9238]
[1737885623885,1.0,254.87,254.85,3.9238]
[1737885624315,1.0,254.87,254.86,23.776884]
[1737885624781,1.0,254.87,254.85,3.9238]
[1737885624983,1.0,254.88,254.85,3.9238]
[1737885625707,1.0,254.87,254.86,23.776884]
[1737885626796,2.0,254.85,254.84,20.0]
[1737885627411,2.0,254.85,254.84,43.776884]
[1737885627584,2.0,254.85,254.84,23.776884]
[1737885628494,2.0,254.85,254.83,0.03]
[1737885629623,1.0,254.85,254.83,0.03]
[1737885629791,1.0,254.85,254.84,20.0]
[1737885629992,1.0,254.87,254.85,23.776884]
[1737885631209,1.0,254.84,254.83,0.03]
[1737885631401,1.0,254.84,254.83,27.730984]
[1737885634020,1.0,254.86,254.85,3.9238]
[1737885638924,1.0,254.86,254.85,27.700684]
[1737885639138,1.0,254.89,254.86,23.776884]
[1737885639339,1.063,254.91,254.86,23.776884]
[1737885639516,1.063,254.91,254.85,33.7334]
[1737885639714,1.063,254.91,254.86,23.776884]
[1737885639925,0.063,254.89,254.86,23.776884]
[1737885640639,1.063,254.89,254.86,23.776884]
[1737885641843,1.063,254.89,254.88,27.700284]
[1737885643148,1.063,254.89,254.83,0.03]
[1737885643149,1.0,254.85,254.84,3.9239]
[1737885643936,1.0,254.84,254.83,0.03]
[1737885646339,11.80955702,254.84,254.83,0.03]
[1737885648550,1.0,254.84,254.83,0.03]
[1737885656970,11.80955702,254.84,254.83,0.03]
[1737885657469,12.80955702,254.84,254.83,0.03]
[1737885657658,13.20254407,254.84,254.83,0.03]
[1737885658944,13.20254407,254.84,254.83,0.0001]
[1737885659245,22.0,254.8,254.79,0.03]
[1737885659446,32.80955702,254.8,254.79,0.03]
[1737885660542,34.20254407,254.8,254.79,0.03]
[1737885660964,38.12714407,254.8,254.79,0.03]
[1737885661273,48.93670109,254.8,254.79,0.03]
[1737885662172,38.12714407,254.8,254.79,0.03]
[1737885662848,48.93670109,254.8,254.79,0.0001]
[1737885664682,38.12714407,254.8,254.79,0.0001]
[1737885669581,48.93670109,254.8,254.79,0.0001]
[1737885669762,61.9466975,254.8,254.79,0.0001]
[1737885671471,34.24340914,254.8,254.79,0.0001]
[1737885671659,38.13888768,254.8,254.79,0.0001]
[1737885673960,48.96018831,254.8,254.79,0.0001]
[1737885674888,49.02318831,254.8,254.79,0.0001]
[1737885678389,38.20188768,254.8,254.79,0.0001]
[1737885680282,49.02318831,254.8,254.79,0.0001]
[1737885680499,2.0,254.72,254.62,23.776884]
[1737885680691,13.21428768,254.72,254.62,23.776884]
[1737885681088,14.21428768,254.72,254.61,1.5308]
[1737885682392,19.14008768,254.72,254.61,1.5308]
[1737885683092,2.0,254.62,254.61,1.5308]
[1737885683272,1.0,254.58,254.57,0.03]
[1737885683466,2.0,254.58,254.57,23.806884]
[1737885683687,1.0,254.58,254.57,23.806884]
[1737885684187,2.0,254.58,254.57,23.806884]
[1737885688799,1.0,254.6,254.59,23.776884]
[1737885688981,2.0,254.62,254.59,23.776884]
[1737885689687,1.0,254.62,254.59,23.776884]
[1737885689898,1.0,254.64,254.62,20.0]
[1737885690078,1.0,254.64,254.63,23.776884]
[1737885690493,1.0,254.69,254.67,23.776884]
[1737885691000,1.0,254.69,254.68,27.703284]
[1737885692405,1.0,254.7,254.69,23.776884]
[1737885692585,1.0,254.72,254.69,23.776884]
[1737885692787,1.0,254.72,254.68,3.9264]
[1737885693587,1.0,254.71,254.68,3.9264]
[1737885695406,1.0,254.69,254.68,3.9264]
[1737885695789,89.72145008,254.77,254.64,9.8176]
[1737885695790,1.0,254.67,254.64,3.9271]
[1737885696709,1.0,254.66,254.64,3.9271]
[1737885696889,1.0,254.66,254.65,43.776884]
[1737885697207,1.0,254.66,254.65,23.776884]
[1737885706409,1.0,254.67,254.65,23.776884]
[1737885706602,1.0,254.67,254.64,27.703984]
[1737885706781,1.0,254.66,254.64,27.703984]
[1737885707500,1.0,254.67,254.64,27.703984]
[1737885709712,2.0,254.67,254.64,27.703984]
[1737885711794,1.0,254.67,254.64,27.703984]
[1737885714323,1.0,254.69,254.66,20.0]
[1737885714526,1.0,254.7,254.67,43.776884]
[1737885714826,0.063,254.71,254.67,43.776884]
[1737885715624,0.063,254.71,254.69,23.776884]
[1737885717722,0.063,254.71,254.67,20.0]
[1737885718041,0.063,254.71,254.69,23.776884]
[1737885719000,0.063,254.71,254.7,3.9261]
[1737885719320,2.0,254.76,254.71,23.776884]
[1737885720214,1.0,254.76,254.74,23.776884]
[1737885720522,1.0,254.76,254.73,1.6313]
[1737885720523,1.0,254.76,254.75,26.616884]
[1737885720724,0.063,254.8,254.79,23.776884]
[1737885721103,0.063,254.8,254.79,27.701684]
[1737885722311,1.063,254.85,254.83,23.776884]
[1737885722622,1.063,254.85,254.83,335.776884]
[1737885722825,0.063,254.85,254.83,335.776884]
[1737885723930,0.063,254.85,254.84,27.700884]
[1737885727732,0.063,254.85,254.84,339.700884]
[1737885730817,0.063,254.85,254.84,27.700884]
[1737885733830,0.063,254.85,254.84,339.700884]
[1737885734532,0.063,254.85,254.84,27.700884]
[1737885734739,0.2196585,254.87,254.85,23.776884]
[1737885736049,0.2196585,254.87,254.86,43.776884]
[1737885737051,1.0,254.92,254.9,20.0]
[1737885737253,1.0,254.92,254.9,43.776884]
[1737885737551,1.063,254.94,254.9,355.776884]
[1737885738549,1.063,254.94,254.9,359.699984]
[1737885740154,0.063,254.94,254.93,43.776884]
[1737885741638,0.063,254.94,254.93,47.699484]
[1737885743256,0.063,254.97,254.93,47.699484]
[1737885743471,0.063,254.97,254.96,355.776884]
[1737885744136,1.063,254.97,254.96,43.776884]
[1737885744361,1.0,254.94,254.93,3.9226]
[1737885744563,1.0,254.91,254.89,3.9232]
[1737885745756,1.0,254.91,254.9,23.776884]
[1737885746372,1.0,254.91,254.89,3.9232]
[1737885747278,1.0,254.91,254.9,23.776884]
[1737885747461,1.0,254.91,254.9,20.0]
[1737885748536,1.0,254.93,254.92,23.776884]
[1737885749255,1.0,254.93,254.9,20.0]
[1737885749458,0.063,254.94,254.9,43.776884]
[1737885751245,0.063,254.94,254.92,23.776884]
[1737885752461,0.063,254.94,254.93,339.699484]
[1737885753159,0.063,254.94,254.93,27.699484]
[1737885754051,0.063,254.97,254.96,20.0]
[1737885754566,0.063,254.97,254.96,43.776884]
[1737885754858,0.063,254.97,254.96,47.698984]
[1737885756256,1.0,255.04,255.03,20.0]
[1737885756462,1.063,255.06,255.05,23.776884]
[1737885756849,1.063,255.06,255.04,23.776884]
[1737885758364,1.063,255.06,255.03,43.776884]
[1737885759543,0.063,255.06,255.03,43.776884]
[1737885760031,0.063,255.06,255.05,23.776884]
[1737885760435,0.063,255.06,255.05,27.697584]
[1737885763357,0.0001,255.06,255.05,27.697584]
[1737885763559,0.0001,255.06,255.05,339.697584]
[1737885763862,0.0001,255.06,255.05,27.697584]
[1737885764065,1.0001,255.06,255.05,3.9207]
[1737885764255,0.0001,255.06,255.05,3.9207]
[1737885764762,0.0001,255.06,255.05,27.697584]
[1737885765467,1.0001,255.06,255.05,27.697584]
[1737885765843,0.0001,255.06,255.05,27.697584]
[1737885769163,0.063,255.11,255.09,20.0]
[1737885770268,0.063,255.11,255.1,335.776884]
[1737885770467,0.063,255.11,255.1,339.696884]
[1737885772069,1.063,255.11,255.1,339.696884]
[1737885772272,0.063,255.11,255.1,339.696884]
[1737885773167,1.063,255.11,255.1,339.696884]
[1737885774179,0.063,255.11,255.1,339.696884]
[1737885775361,0.063,255.11,255.1,27.696884]
[1737885775667,1.063,255.11,255.1,27.696884]
[1737885775874,0.063,255.11,255.1,27.696884]
[1737885778470,0.063,255.11,255.1,339.696884]
[1737885778675,0.063,255.17,255.15,23.776884]
[1737885779160,0.063,255.17,255.16,43.776884]
[1737885779553,1.063,255.17,255.16,43.776884]
[1737885780063,1.063,255.17,255.16,47.695984]
[1737885780560,1.063,255.17,255.16,43.776884]
[1737885780762,1.0,255.14,255.13,20.0]
[1737885781473,1.0,255.07,255.06,3.9206]
[1737885781662,1.0,255.07,255.06,23.9206]
[1737885781851,1.0,255.07,255.06,47.697484]
[1737885782047,1.0,255.07,255.06,23.9206]
[1737885782276,1.0,255.07,255.06,3.9206]
[1737885783564,1.03,255.07,255.06,3.9206]
[1737885783771,1.03,255.07,255.06,23.9206]
[1737885785264,1.03,255.07,255.06,359.697484]
[1737885786375,0.03,255.07,255.06,359.697484]
[1737885786575,1.0,255.13,255.11,23.776884]
[1737885787585,1.0,255.13,255.1,20.0]
[1737885787766,1.0,255.06,255.05,0.063]
[1737885788496,4.9206,255.06,255.05,0.063]
[1737885788661,5.9206,255.06,255.05,0.063]
[1737885788861,1.0,254.93,254.92,20.03]
[1737885789291,1.0,254.95,254.93,23.776884]
[1737885789581,1.0,254.95,254.94,20.0]
[1737885790763,1.0,254.95,254.93,27.699384]
[1737885791202,1.0,254.97,254.96,43.776884]
[1737885792802,1.0,254.97,254.96,359.698984]
[1737885793367,1.0,254.97,254.96,47.698984]
[1737885793560,1.0,254.99,254.97,23.776884]
[1737885794166,1.0,254.99,254.96,3.9221]
[1737885794580,1.0,254.99,254.97,23.776884]
[1737885795801,1.0,254.99,254.98,27.698684]
[1737885796479,1.0,254.99,254.98,339.698684]
[1737885797987,1.0,255.01,255.0,3.9215]
[1737885798163,1.0,255.01,255.0,27.698384]
[1737885801175,1.0,255.01,255.0,339.698384]
[1737885804078,1.0,255.01,255.0,27.698384]
[1737885806596,1.0,255.01,254.97,20.0]
[1737885806897,1.0,254.98,254.97,23.9218]
[1737885807472,1.0,254.98,254.96,0.063]
[1737885807873,1.0,254.98,254.96,3.9851]
[1737885808090,1.0,254.98,254.97,23.776884]
[1737885808492,1.0,254.98,254.96,3.9851]
[1737885808902,1.0,254.98,254.97,23.776884]
[1737885809397,1.0,254.98,254.97,23.839884]
[1737885815795,1.0,255.0,254.99,43.776884]
[1737885817598,1.0,254.98,254.97,0.063]
[1737885823129,1.0,254.98,254.97,23.839884]
[1737885832014,1.0,254.98,254.97,27.761884]
[1737885833301,1.0,254.98,254.97,339.761884]
[1737885837018,1.0,254.98,254.97,27.761884]
[1737885837609,1.0,254.98,254.97,0.063]
[1737885838021,1.0,254.98,254.97,23.839884]
[1737885840415,1.0,254.98,254.97,27.761884]
[1737885844331,1.0,254.98,254.97,0.063]
[1737885845040,8.31443713,254.98,254.97,0.063]
[1737885845409,7.92145008,254.98,254.97,0.063]
[1737885848616,8.31443713,254.98,254.97,0.063]
[1737885849717,1.0,254.98,254.97,0.063]
[1737885852041,7.92145008,254.98,254.97,0.063]
[1737885852240,8.31443713,254.98,254.97,0.063]
[1737885857450,7.92145008,254.98,254.97,0.063]
[1737885858652,8.31443713,254.98,254.97,0.063]
[1737885859926,7.92145008,254.98,254.97,0.063]
[1737885860243,1.0,254.98,254.97,0.063]
[1737885864238,1.0,254.98,254.97,20.063]
[1737885864443,1.0,254.98,254.97,43.839884]
[1737885868484,1.0,255.0,254.98,23.776884]
[1737885868646,1.0,255.02,255.01,43.776884]
[1737885868972,1.0,255.04,255.02,23.776884]
[1737885869157,0.03,255.05,255.04,20.0]
[1737885869363,0.03,255.05,255.04,43.776884]
[1737885869746,0.03,255.05,255.04,47.697784]
[1737885873467,1.0,255.12,255.08,20.0]
[1737885873672,0.03,255.13,255.09,23.776884]
[1737885873872,0.03,255.13,255.12,20.0]
[1737885875004,0.03,255.13,255.12,23.9197]
[1737885875779,1.0,255.09,255.07,20.0]
[1737885876977,1.0,255.09,255.08,23.776884]
[1737885877278,1.0,255.09,255.05,3.9207]
[1737885878773,1.0,255.09,255.08,23.776884]
[1737885879775,1.0,255.09,255.07,23.776884]
[1737885880863,1.03,255.09,255.07,23.776884]
[1737885881979,1.03,255.09,255.08,20.0]
[1737885887064,1.03,255.09,255.08,23.9203]
[1737885887881,1.03,255.09,255.08,47.697184]
[1737885888272,0.03,255.09,255.08,47.697184]
[1737885889088,1.03,255.09,255.08,47.697184]
[1737885889586,0.03,255.09,255.08,47.697184]
[1737885889992,1.03,255.13,255.12,20.0]
[1737885890164,1.03,255.13,255.12,43.776884]
[1737885890779,0.03,255.13,255.12,43.776884]
[1737885891081,0.03,255.13,255.12,359.696584]
[1737885891980,1.03,255.13,255.12,359.696584]
[1737885894992,1.03,255.13,255.12,47.696584]
[1737885896101,0.03,255.13,255.12,47.696584]
[1737885897979,0.03,255.13,255.12,359.696584]
[1737885900496,0.0001,255.13,255.12,47.696584]
[1737885901679,0.063,255.2,255.19,20.0]
[1737885901885,0.063,255.2,255.19,43.776884]
[1737885902295,1.0,255.24,255.23,43.776884]
[1737885903981,1.0,255.24,255.23,23.776884]
[1737885904719,1.0,255.18,255.14,9.7983]
[1737885904926,1.0,255.18,255.17,20.0]
[1737885905419,1.0,255.18,255.15,23.9192]
[1737885905633,3.9176,255.26,255.15,47.696084]
[1737885905634,1.0,255.16,255.15,47.696084]
[1737885906720,1.0,255.18,255.16,23.776884]
[1737885907026,1.0,255.18,255.17,27.695784]
[1737885909119,1.03,255.2,255.19,43.776884]
[1737885910034,1.03,255.2,255.19,47.695484]
[1737885911706,0.03,255.2,255.19,47.695484]
[1737885911908,1.0,255.25,255.23,20.0]
[1737885912114,1.0,255.29,255.27,20.0]
[1737885912419,1.0,255.29,255.28,23.776884]
[1737885912721,1.0,255.29,255.23,20.0]
[1737885912908,1.0,255.29,255.26,312.0]
[1737885913114,1.0,255.29,255.28,20.0]
[1737885913506,1.0,255.29,255.24,57.489084]
[1737885916210,1.0,255.29,255.26,3.9175]
[1737885916426,1.0,255.29,255.28,20.0]
[1737885917632,1.0,255.29,255.28,43.776884]
[1737885918508,1.0,255.29,255.28,47.694084]
[1737885920016,1.0,255.29,255.28,359.694084]
[1737885920213,1.0,255.29,255.28,47.694084]
[1737885920415,1.0,255.23,255.22,20.0]
[1737885920613,1.0,255.23,255.22,50.0]
[1737885920823,1.0,255.23,255.22,20.0]
[1737885921234,1.0,255.23,255.21,3.9183]
[1737885922122,1.0,255.23,255.22,23.776884]
[1737885922320,1.0,255.27,255.25,23.776884]
[1737885922626,1.0,255.27,255.23,3.918]
[1737885922627,1.0,255.29,255.27,23.776884]
[1737885922834,1.0,255.29,255.27,20.0]
[1737885923217,1.0,255.29,255.28,23.776884]
[1737885923619,1.0,255.29,255.27,20.0]
[1737885924432,1.0,255.29,255.28,3.9172]
[1737885926623,1.0,255.29,255.27,20.0]
[1737885926938,1.0,255.29,255.27,23.9173]
[1737885933325,1.0,255.29,255.28,23.776884]
[1737885935418,1.0,255.27,255.26,43.776884]
[1737885935651,1.0,255.27,255.26,47.694384]
[1737885937839,1.0,255.27,255.26,23.9175]
[1737885938942,1.0,255.27,255.23,20.0]
[1737885939134,1.0,255.27,255.26,20.0]
[1737885939638,1.0,255.27,255.25,20.0]
[1737885939839,1.0,255.27,255.26,27.694384]
[1737885943153,1.0,255.29,255.28,20.0]
[1737885943552,1.0,255.29,255.26,3.9175]
[1737885943742,1.0,255.27,255.26,23.776884]
[1737885944453,1.0,255.22,255.2,0.063]
[1737885944632,1.0,255.22,255.21,23.9183]
[1737885945354,1.0,255.22,255.21,27.695184]
[1737885948868,1.0,255.24,255.23,3.918]
[1737885949174,1.0,255.26,255.24,23.776884]
[1737885950051,0.03,255.29,255.23,23.776884]
[1737885950052,1.0,255.24,255.23,23.776884]
[1737885950761,1.0,255.26,255.25,23.776884]
[1737885952160,1.0,255.26,255.25,27.694584]
[1737885952350,1.0,255.28,255.27,20.0]
[1737885954575,1.0,255.28,255.27,23.9174]
[1737885956189,1.03,255.28,255.27,23.9174]
[1737885956579,1.03,255.28,255.27,47.694284]
[1737885958283,1.03,255.28,255.27,359.694284]
[1737885959667,1.0,255.35,255.3,20.0]
[1737885959866,1.0,255.38,255.31,20.0]
[1737885960078,1.0,255.38,255.32,2.8]
[1737885960280,1.0,255.38,255.37,23.776884]
[1737885961067,1.0,255.38,255.37,27.692684]
[1737885961470,0.03,255.39,255.38,23.776884]
[1737885961672,0.03,255.39,255.37,3.9158]
[1737885961868,1.0,255.38,255.37,3.9158]
[1737885962262,0.03,255.39,255.37,3.9158]
[1737885962990,0.03,255.39,255.38,23.776884]
[1737885963379,0.03,255.39,255.38,43.776884]
[1737885964503,0.03,255.39,255.38,47.692584]
[1737885966506,1.0,255.45,255.38,33.705]
[1737885966873,1.0,255.42,255.41,20.0]
[1737885967074,1.0,255.45,255.42,23.776884]
[1737885967302,1.0,255.47,255.42,23.776884]
[1737885967702,1.0,255.47,255.46,23.776884]
[1737885968181,1.0,255.47,255.45,20.0]
[1737885969169,1.0,255.47,255.46,23.776884]
[1737885969792,1.0,255.47,255.46,335.776884]
[1737885970005,1.6574,255.54,255.46,335.776884]
[1737885970006,1.0,255.49,255.48,43.776884]
[1737885971809,1.0,255.44,255.43,3.9148]
[1737885972112,1.0,255.42,255.41,23.9151]
[1737885972713,1.0,255.44,255.41,47.691984]
[1737885972884,1.0,255.44,255.43,20.0]
[1737885973312,1.0,255.44,255.43,43.776884]
[1737885973988,1.0,255.38,255.37,23.9158]
[1737885974184,1.0,255.38,255.37,3.9158]
[1737885974386,1.0,255.38,255.37,47.692684]
[1737885975390,1.0,255.4,255.39,27.692384]
[1737885975589,1.0,255.4,255.39,23.776884]
[1737885977022,1.0,255.42,255.4,27.692284]
[1737885977512,1.0,255.44,255.43,43.776884]
[1737885980019,1.0,255.44,255.43,47.691784]
[1737885982222,1.0,255.44,255.43,43.776884]
[1737885985121,1.0,255.46,255.44,27.691684]
[1737885986224,5.5707,255.54,255.42,3.915]
[1737885986225,1.0,255.43,255.42,3.915]
[1737885986529,1.0,255.43,255.41,23.776884]
[1737885986703,1.0,255.43,255.42,20.0]
[1737885987226,1.0,255.43,255.41,43.776884]
[1737885989828,1.0,255.43,255.42,3.9151]
[1737885992006,1.03,255.43,255.42,3.9151]
[1737885992537,1.03,255.43,255.41,43.701984]
[1737885993551,0.03,255.43,255.42,3.9151]
[1737885995236,0.03,255.43,255.42,27.691984]
[1737885997842,1.0,255.39,255.38,0.063]
[1737886001436,1.0,255.39,255.38,23.839884]
[1737886001947,1.0,255.39,255.38,0.063]
[1737886005528,1.0,255.39,255.38,20.063]
[1737886006429,1.0,255.39,255.38,43.839884]
[1737886007965,0.03,255.43,255.42,20.0]
[1737886008263,1.03,255.43,255.42,43.776884]
[1737886009768,1.03,255.43,255.42,47.691984]
[1737886009927,0.03,255.43,255.42,47.691984]
[1737886011458,1.0,255.42,255.41,2.8]
[1737886012068,1.0,255.42,255.41,26.576884]
[1737886017556,1.0,255.42,255.41,23.776884]
[1737886018437,1.03,255.42,255.41,23.776884]
[1737886021141,1.03,255.42,255.41,27.692084]
[1737886024963,0.03,255.42,255.41,27.692084]
[1737886026438,0.03,255.42,255.41,339.692084]
[1737886027746,1.03,255.42,255.41,3.9152]
[1737886028156,1.03,255.42,255.41,27.692084]
[1737886028361,1.03,255.42,255.41,3.9152]
[1737886029162,1.03,255.42,255.41,20.0]
[1737886030271,1.03,255.42,255.41,20.063]
[1737886031142,1.03,255.42,255.41,3.9782]
[1737886033151,0.03,255.42,255.41,3.9782]
[1737886034759,1.03,255.42,255.41,3.9782]
[1737886038857,1.03,255.42,255.41,27.755084]
[1737886046790,1.6604,255.62,255.49,20.0]
[1737886047002,7.89442052,255.61,255.49,20.0]
[1737886047295,7.89442052,255.61,255.5,23.776884]
[1737886048090,7.89442052,255.61,255.52,23.776884]
[1737886048599,11.80662052,255.61,255.52,23.776884]
[1737886051697,6.89442052,255.55,255.48,20.0]
[1737886052298,6.89442052,255.55,255.49,23.776884]
[1737886052684,6.89442052,255.55,255.48,23.776884]
[1737886052881,6.89442052,255.55,255.48,20.0]
[1737886053192,12.80732052,255.57,255.48,20.0]
[1737886053393,11.80732052,255.57,255.48,20.0]
[1737886053906,10.80732052,255.57,255.47,27.691084]
[1737886054102,0.03,255.55,255.47,27.691084]
[1737886054303,0.03,255.55,255.5,20.0]
[1737886056203,0.03,255.55,255.48,3.914]
[1737886056204,1.0,255.46,255.41,0.063]
[1737886056409,6.89442052,255.44,255.41,0.063]
[1737886057279,10.80922052,255.44,255.41,0.063]
[1737886058300,3.9148,255.44,255.41,0.063]
[1737886060099,4.9148,255.44,255.41,0.063]
[1737886060820,11.80922052,255.44,255.41,0.063]
[1737886061029,7.89442052,255.42,255.41,0.063]
[1737886062903,11.80952052,255.42,255.41,0.063]
[1737886067451,13.37612152,255.42,255.41,0.063]
[1737886070421,11.80952052,255.42,255.41,0.063]
[1737886070622,6.89442052,255.44,255.41,0.063]
[1737886070943,10.80922052,255.44,255.41,0.063]
[1737886072243,6.89442052,255.44,255.41,0.063]
[1737886074845,10.80922052,255.44,255.41,0.063]
[1737886078340,6.89442052,255.44,255.41,0.063]
[1737886079645,6.89442052,255.46,255.41,0.063]
[1737886080757,10.80892052,255.46,255.41,0.063]
[1737886081653,6.89442052,255.42,255.41,0.063]
[1737886082123,8.89442052,255.42,255.41,0.063]
[1737886082647,12.80952052,255.42,255.41,0.063]
[1737886085659,13.20250757,255.42,255.41,0.063]
[1737886094354,13.20250757,255.42,255.41,0.0001]
[1737886095462,22.0,255.39,255.38,0.0001]
[1737886095654,29.28740757,255.39,255.38,0.0001]
[1737886097168,33.20290757,255.39,255.38,0.0001]
[1737886097337,39.42420757,255.39,255.38,0.0001]
[1737886108254,33.20290757,255.39,255.38,0.0001]
[1737886109780,1.0,255.37,255.27,3.8804]
[1737886109971,10.81042052,255.36,255.27,3.8804]
[1737886111577,3.916,255.36,255.27,3.8804]
[1737886113878,82.8,255.38,255.28,27.693984]
[1737886114557,0.03,255.39,255.28,27.693984]
[1737886120791,0.03,255.39,255.31,20.0]
[1737886121087,0.03,255.39,255.31,23.9167]
[1737886123292,0.03,255.39,255.29,3.9171]
[1737886123465,0.03,255.39,255.3,23.776884]
[1737886124389,0.03,255.39,255.3,20.0]
[1737886124690,0.03,255.39,255.32,23.776884]
[1737886126491,0.03,255.39,255.34,23.776884]
[1737886127487,0.03,255.39,255.34,27.693084]
[1737886129492,0.03,255.39,255.31,1.6493]
[1737886129792,1.03,255.39,255.31,1.6493]
[1737886129999,0.03,255.39,255.31,1.6493]
[1737886130299,1.03,255.39,255.31,1.6493]
[1737886130806,3.9455,255.39,255.31,1.6493]